bitfinex/quotes_BTCUSD_20250829
["timestamp","ask_amount","ask_price","bid_price","bid_amount"]
[1756427666426,0.2177226,112590.0,112580.0,0.26796776]
[1756427666615,0.53678378,112590.0,112580.0,0.27092776]
[1756427667016,0.3800727,112590.0,112580.0,0.27092776]
[1756427667215,0.51763566,112590.0,112580.0,0.27092776]
[1756427667416,0.53857448,112590.0,112580.0,0.27192776]
[1756427668005,0.53857448,112590.0,112580.0,0.27292776]
[1756427668456,0.6268708,112590.0,112580.0,0.09527632]
[1756427668667,1.07140208,112590.0,112580.0,0.09231632]
[1756427668866,1.22336208,112590.0,112580.0,0.09231632]
[1756427671018,1.07140208,112590.0,112580.0,0.09231632]
[1756427671338,0.53857448,112590.0,112580.0,0.27292776]
[1756427671576,0.98310576,112590.0,112580.0,0.27292776]
[1756427671785,0.53857448,112590.0,112580.0,0.27292776]
[1756427671981,0.34,112590.0,112580.0,0.27292776]
[1756427672713,0.51763566,112590.0,112580.0,0.09527632]
[1756427672911,1.05243326,112590.0,112580.0,0.24427632]
[1756427673120,1.07656208,112590.0,112580.0,0.09029632]
[1756427673506,1.07656208,112590.0,112580.0,0.09231632]
[1756427673808,1.22848208,112590.0,112580.0,0.09231632]
[1756427674755,1.22848208,112590.0,112580.0,0.002]
[1756427675615,1.25574901,112590.0,112580.0,0.002]
[1756427676048,1.27485303,112590.0,112580.0,0.002]
[1756427676792,1.27485303,112590.0,112580.0,0.001]
[1756427676965,1.29766136,112590.0,112580.0,0.001]
[1756427677380,0.53859026,112580.0,112570.0,0.00044768]
[1756427677538,1.36422567,112580.0,112570.0,0.00044768]
[1756427677719,1.36938567,112580.0,112570.0,0.00044768]
[1756427677925,1.38597217,112580.0,112570.0,0.00044768]
[1756427678850,1.38797217,112580.0,112570.0,0.00044768]
[1756427679407,1.37138567,112580.0,112570.0,0.00044768]
[1756427679755,1.37238567,112580.0,112570.0,0.00044768]
[1756427680117,1.37238517,112580.0,112570.0,0.00044768]
[1756427680324,1.37594717,112580.0,112570.0,0.00044768]
[1756427681771,1.36972713,112580.0,112570.0,0.00044768]
[1756427681997,1.37594701,112580.0,112570.0,0.00044768]
[1756427682228,1.36972713,112580.0,112570.0,0.00044768]
[1756427684510,1.12951081,112580.0,112570.0,0.00044768]
[1756427684727,1.25416388,112580.0,112570.0,0.00044768]
[1756427685144,1.23505986,112580.0,112570.0,0.00044768]
[1756427686193,1.26232679,112580.0,112570.0,0.00044768]
[1756427687833,1.23505986,112580.0,112570.0,0.00246768]
[1756427688057,1.14676354,112580.0,112570.0,0.00246768]
[1756427689090,0.54515226,112580.0,112570.0,0.00246768]
[1756427689293,1.14160354,112580.0,112570.0,0.00246768]
[1756427689495,1.03862313,112580.0,112570.0,0.00246768]
[1756427689940,1.04358313,112580.0,112570.0,0.00044768]
[1756427690059,1.12987945,112580.0,112570.0,0.00044768]
[1756427690263,1.12887945,112580.0,112570.0,0.00044768]
[1756427690495,1.12887945,112580.0,112570.0,0.00144768]
[1756427691105,1.52449621,112580.0,112570.0,0.00144768]
[1756427691310,1.49769725,112580.0,112570.0,0.00144768]
[1756427692174,1.6318903,112580.0,112570.0,0.00144768]
[1756427692377,1.63910644,112580.0,112570.0,0.00144768]
[1756427692718,1.63910527,112580.0,112570.0,0.00144768]
[1756427693117,1.65568149,112580.0,112570.0,0.00044768]
[1756427693467,1.61330631,112580.0,112570.0,0.00044768]
[1756427693886,1.62987875,112580.0,112570.0,0.00044768]
[1756427694289,1.62987875,112580.0,112560.0,0.0004]
[1756427694290,1.24897471,112570.0,112560.0,0.0004]
[1756427694514,1.32013419,112570.0,112560.0,0.0004]
[1756427694697,1.32509419,112570.0,112560.0,0.0004]
[1756427694935,1.3441828,112570.0,112560.0,0.0004]
[1756427695215,1.32509419,112570.0,112560.0,0.0004]
[1756427695593,1.54533419,112570.0,112560.0,0.0004]
[1756427695797,1.39341419,112570.0,112560.0,0.0004]
[1756427696452,1.39341419,112570.0,112560.0,0.0014]
[1756427696814,1.51853523,112570.0,112560.0,0.0014]
[1756427697193,1.51853523,112570.0,112560.0,0.0004]
[1756427697615,1.51953523,112570.0,112560.0,0.0004]
[1756427698703,1.52311423,112570.0,112560.0,0.0004]
[1756427698906,1.52411423,112570.0,112560.0,0.0004]
[1756427699109,1.18256336,112570.0,112560.0,0.0004]
[1756427699287,1.54420934,112570.0,112560.0,0.0004]
[1756427699491,1.52511423,112570.0,112560.0,0.0004]
[1756427699698,1.4978473,112570.0,112560.0,0.0004]
[1756427700259,0.81474556,112570.0,112560.0,0.00239]
[1756427700469,0.88673591,112570.0,112560.0,0.00239]
[1756427700792,1.03865591,112570.0,112560.0,0.00541]
[1756427701154,0.88673591,112570.0,112560.0,0.00541]
[1756427701354,1.03865591,112570.0,112560.0,0.00541]
[1756427701621,1.12595223,112570.0,112560.0,0.00541]
[1756427702412,1.12495223,112570.0,112560.0,0.00541]
[1756427702628,1.12495223,112570.0,112560.0,0.00641]
[1756427702833,0.20318504,112570.0,112560.0,0.00641]
[1756427703075,0.52379709,112570.0,112560.0,0.09370632]
[1756427703243,0.004579,112570.0,112560.0,0.27438933]
[1756427703457,0.17766722,112570.0,112560.0,0.27438933]
[1756427703640,0.51766722,112570.0,112560.0,0.27438933]
[1756427703971,0.34,112570.0,112560.0,0.27438933]
[1756427704376,0.51766722,112570.0,112560.0,0.27438933]
[1756427704926,0.34,112570.0,112560.0,0.6159402]
[1756427705332,0.51766722,112570.0,112560.0,0.27438933]
[1756427705651,0.51766722,112570.0,112560.0,0.42630933]
[1756427705897,0.51766722,112570.0,112560.0,0.27438933]
[1756427706027,0.85921809,112570.0,112560.0,0.09470632]
[1756427706245,0.85921809,112570.0,112560.0,0.27238933]
[1756427706470,0.51766722,112570.0,112560.0,0.27638933]
[1756427706665,0.51766722,112570.0,112560.0,0.27538933]
[1756427708057,0.51766722,112570.0,112560.0,0.27838933]
[1756427709693,0.51766722,112570.0,112560.0,0.42724933]
[1756427710118,0.51766722,112570.0,112560.0,0.43026933]
[1756427712770,0.51766722,112570.0,112560.0,0.27838933]
[1756427712976,0.51766722,112570.0,112560.0,0.43026933]
[1756427714993,0.85921809,112570.0,112560.0,0.42724933]
[1756427718759,0.85921809,112570.0,112560.0,0.27536933]
[1756427718980,0.95255441,112570.0,112560.0,0.24956632]
[1756427719178,0.95255441,112570.0,112560.0,0.24757632]
[1756427720687,0.95255441,112570.0,112560.0,0.24453632]
[1756427721114,0.95255441,112570.0,112560.0,0.24653632]
[1756427721898,0.95255441,112570.0,112560.0,0.24253632]
[1756427722286,0.95255441,112570.0,112560.0,0.24453632]
[1756427723621,0.97349323,112570.0,112560.0,0.24453632]
[1756427723799,1.12533323,112570.0,112560.0,0.0044]
[1756427724001,1.15204623,112570.0,112560.0,0.15624]
[1756427724617,1.15204623,112570.0,112560.0,0.15424]
[1756427724826,1.15204623,112570.0,112560.0,0.15324]
[1756427725184,1.15204623,112570.0,112560.0,0.15424]
[1756427725637,1.15204623,112570.0,112560.0,0.0024]
[1756427725882,1.15204623,112570.0,112560.0,0.15424]
[1756427726071,1.15204623,112570.0,112560.0,0.0024]
[1756427729047,1.4935971,112570.0,112560.0,0.0024]
[1756427730846,1.51896844,112570.0,112560.0,0.0024]
[1756427731051,1.51896845,112570.0,112560.0,0.0014]
[1756427731440,1.51896707,112570.0,112560.0,0.0004]
[1756427732065,1.52096707,112570.0,112560.0,0.0004]
[1756427732733,1.52196707,112570.0,112560.0,0.0004]
[1756427733333,1.37012707,112570.0,112560.0,0.0004]
[1756427733542,1.52196707,112570.0,112560.0,0.0004]
[1756427734786,1.37012707,112570.0,112560.0,0.0004]
[1756427734988,1.50282638,112570.0,112560.0,0.0004]
[1756427740739,1.35098638,112570.0,112560.0,0.0004]
[1756427741027,0.72519904,112570.0,112560.0,0.0004]
[1756427741247,1.06674991,112570.0,112560.0,0.0004]
[1756427742099,0.91490991,112570.0,112560.0,0.00238]
[1756427742317,0.90986991,112570.0,112560.0,0.00238]
[1756427742535,0.90886991,112570.0,112560.0,0.00238]
[1756427742730,0.99725623,112570.0,112560.0,0.00238]
[1756427742981,1.00020623,112570.0,112560.0,0.00238]
[1756427743837,1.00020623,112570.0,112560.0,0.0004]
[1756427744360,1.4935571,112570.0,112560.0,0.0004]
[1756427744574,1.15200623,112570.0,112560.0,0.0014]
[1756427745407,1.15200623,112570.0,112560.0,0.0024]
[1756427745612,1.4935571,112570.0,112560.0,0.0024]
[1756427747145,1.49978709,112570.0,112560.0,0.0024]
[1756427747402,1.34798709,112570.0,112560.0,0.0024]
[1756427747654,1.34798709,112570.0,112560.0,0.0014]
[1756427747870,1.3417571,112570.0,112560.0,0.0014]
[1756427748091,1.15200623,112570.0,112560.0,0.0014]
[1756427748309,1.15200623,112570.0,112560.0,0.0004]
[1756427748948,1.00020623,112570.0,112560.0,0.0004]
[1756427749170,1.15200623,112570.0,112560.0,0.00242]
[1756427749388,0.72215904,112570.0,112560.0,0.00242]
[1756427749606,1.06370991,112570.0,112560.0,0.0004]
[1756427750688,0.56531904,112570.0,112560.0,0.00242]
[1756427750897,0.90686991,112570.0,112560.0,0.00542]
[1756427751607,0.90686991,112570.0,112560.0,0.00242]
[1756427751826,1.00033623,112570.0,112560.0,0.0004]
[1756427752039,0.99722623,112570.0,112560.0,0.00242]
[1756427752456,1.00033623,112570.0,112560.0,0.00242]
[1756427753356,1.00033623,112570.0,112560.0,0.0004]
[1756427753861,1.4936871,112570.0,112560.0,0.0004]
[1756427754344,1.5190878,112570.0,112560.0,0.0004]
[1756427760088,0.68418606,112570.0,112560.0,0.00242]
[1756427760351,0.90686991,112570.0,112560.0,0.00242]
[1756427760757,0.90892991,112570.0,112560.0,0.00242]
[1756427761328,0.90686991,112570.0,112560.0,0.00242]
[1756427761746,0.90686991,112570.0,112560.0,0.00542]
[1756427762189,1.00033623,112570.0,112560.0,0.0004]
[1756427762769,1.00033623,112570.0,112560.0,0.0014]
[1756427764027,1.00033623,112570.0,112560.0,0.0024]
[1756427764251,1.15209623,112570.0,112560.0,0.0024]
[1756427765087,1.4936471,112570.0,112560.0,0.0024]
[1756427765301,1.54632547,112570.0,112560.0,0.0024]
[1756427765733,1.57312443,112570.0,112560.0,0.0024]
[1756427765933,1.58976309,112570.0,112560.0,0.0024]
[1756427766148,1.58976309,112570.0,112560.0,0.0014]
[1756427766649,1.56296413,112570.0,112560.0,0.0014]
[1756427766864,0.94892141,112570.0,112560.0,0.00242]
[1756427767189,0.59073033,112570.0,112560.0,0.00242]
[1756427767390,0.59073033,112570.0,112560.0,0.00542]
[1756427767391,0.92604113,112570.0,112560.0,0.00542]
[1756427767613,0.90686991,112570.0,112560.0,0.00242]
[1756427767794,0.91203991,112570.0,112560.0,0.00242]
[1756427767992,0.90686991,112570.0,112560.0,0.00242]
[1756427768557,0.90686991,112570.0,112560.0,0.00342]
[1756427768736,0.90686991,112570.0,112560.0,0.00442]
[1756427768939,0.99516623,112570.0,112560.0,0.00442]
[1756427769149,0.99722623,112570.0,112560.0,0.00442]
[1756427769353,1.15209623,112570.0,112560.0,0.00442]
[1756427769708,1.14692623,112570.0,112560.0,0.00442]
[1756427769915,1.05862991,112570.0,112560.0,0.00442]
[1756427770389,0.90686991,112570.0,112560.0,0.00442]
[1756427770605,0.56531904,112570.0,112560.0,0.00442]
[1756427770808,0.90686991,112570.0,112560.0,0.00442]
[1756427771674,0.88593109,112570.0,112560.0,0.27562036]
[1756427771894,0.88593109,112570.0,112560.0,0.27339933]
[1756427772112,0.54438022,112570.0,112560.0,0.27339933]
[1756427772315,0.88593109,112570.0,112560.0,0.09571632]
[1756427772519,0.90121796,112570.0,112560.0,0.27562036]
[1756427772788,0.026713,112570.0,112560.0,0.27339933]
[1756427772986,0.32941302,112580.0,112560.0,0.27339933]
[1756427772987,0.51920389,112580.0,112560.0,0.27339933]
[1756427773157,0.19859184,112580.0,112570.0,0.08829632]
[1756427773366,0.22530084,112580.0,112570.0,0.09031632]
[1756427773715,0.57047084,112580.0,112570.0,0.09031632]
[1756427773942,0.65565716,112580.0,112570.0,0.09031632]
[1756427774406,0.99720803,112580.0,112570.0,0.09031632]
[1756427774827,0.99514803,112580.0,112570.0,0.09031632]
[1756427774950,0.90685171,112580.0,112570.0,0.09031632]
[1756427775388,0.90891171,112580.0,112570.0,0.09031632]
[1756427775615,0.91202171,112580.0,112570.0,0.09031632]
[1756427775800,0.91202171,112580.0,112570.0,0.08829632]
[1756427776027,0.90891171,112580.0,112570.0,0.09031632]
[1756427776556,0.99720803,112580.0,112570.0,0.09031632]
[1756427776758,1.00031803,112580.0,112570.0,0.09031632]
[1756427778409,0.90685171,112580.0,112570.0,0.26798354]
[1756427778613,0.90685171,112580.0,112570.0,0.09031632]
[1756427779210,0.88591289,112580.0,112570.0,0.26798354]
[1756427779393,0.88591289,112580.0,112570.0,0.09031632]
[1756427780539,0.88591289,112580.0,112570.0,0.09253716]
[1756427780879,0.88801289,112580.0,112570.0,0.09253716]
[1756427782094,0.89119289,112580.0,112570.0,0.09253716]
[1756427782292,0.88801289,112580.0,112570.0,0.09253716]
[1756427783493,0.89119289,112580.0,112570.0,0.09253716]
[1756427784995,0.89119289,112580.0,112570.0,0.24001632]
[1756427784996,0.94964317,112580.0,112570.0,0.24001632]
[1756427785199,0.97058199,112580.0,112570.0,0.08829632]
[1756427785404,0.19860604,112570.0,112560.0,0.15212]
[1756427785607,0.88698778,112570.0,112560.0,0.0004]
[1756427785941,0.88698778,112570.0,112560.0,0.42025933]
[1756427785942,0.54015691,112570.0,112560.0,0.42025933]
[1756427786166,0.54015691,112570.0,112560.0,0.24257632]
[1756427786373,0.54543691,112570.0,112560.0,0.08869632]
[1756427786585,0.54543691,112570.0,112560.0,0.24041632]
[1756427786972,0.54543691,112570.0,112560.0,0.08869632]
[1756427787172,0.63373323,112570.0,112560.0,0.24041632]
[1756427787383,0.63373323,112570.0,112560.0,0.24141632]
[1756427788158,0.63373323,112570.0,112560.0,0.24241632]
[1756427788583,0.66044523,112570.0,112560.0,0.24241632]
[1756427789117,0.56686891,112570.0,112560.0,0.42225933]
[1756427789319,0.56896891,112570.0,112560.0,0.24457632]
[1756427789496,0.57214891,112570.0,112560.0,0.09069632]
[1756427789700,0.57214891,112570.0,112560.0,0.24241632]
[1756427790100,0.57214891,112570.0,112560.0,0.24237632]
[1756427790307,0.66044523,112570.0,112560.0,0.24237632]
[1756427791238,0.31889436,112570.0,112560.0,0.24453632]
[1756427791466,0.66044523,112570.0,112560.0,0.24453632]
[1756427791904,0.65726523,112570.0,112560.0,0.24453632]
[1756427792451,0.66044523,112570.0,112560.0,0.24453632]
[1756427792649,0.66044523,112570.0,112560.0,0.24237632]
[1756427793065,1.0019961,112570.0,112560.0,0.24237632]
[1756427794132,1.0019961,112570.0,112560.0,0.15408]
[1756427796211,0.91369978,112570.0,112560.0,0.15624]
[1756427796385,0.57214891,112570.0,112560.0,0.33392301]
[1756427796585,0.56686891,112570.0,112560.0,0.33708301]
[1756427796794,0.20437922,112570.0,112560.0,0.42537933]
[1756427797032,0.54593009,112570.0,112560.0,0.42537933]
[1756427797233,0.51765302,112580.0,112570.0,0.17766722]
[1756427797463,0.85920389,112580.0,112570.0,0.09045632]
[1756427797909,0.86448389,112580.0,112570.0,0.26812354]
[1756427798113,0.34155087,112580.0,112570.0,0.27128354]
[1756427798315,0.36825987,112580.0,112570.0,0.33960354]
[1756427798514,0.68155087,112580.0,112570.0,0.33960354]
[1756427798931,0.36825787,112590.0,112580.0,0.17765144]
[1756427799134,0.36825787,112590.0,112580.0,0.42294776]
[1756427799422,0.34155087,112590.0,112580.0,0.42294776]
[1756427799618,0.52652843,112600.0,112590.0,0.17763566]
[1756427799818,0.8947833,112600.0,112590.0,0.26809198]
[1756427800579,0.9000633,112600.0,112590.0,0.26809198]
[1756427800917,0.9000633,112600.0,112590.0,0.09045632]
[1756427801118,0.9000633,112600.0,112590.0,0.24213632]
[1756427801326,0.9010633,112600.0,112590.0,0.24213632]
[1756427801529,0.9010633,112600.0,112590.0,0.23993632]
[1756427802911,0.9010633,112600.0,112590.0,0.08829632]
[1756427803055,0.9010633,112600.0,112590.0,0.23993632]
[1756427803713,1.24261417,112600.0,112590.0,0.23993632]
[1756427804800,0.9010633,112600.0,112590.0,0.23993632]
[1756427805221,0.9010633,112600.0,112570.0,0.2459769]
[1756427805222,0.51765144,112580.0,112570.0,0.2459769]
[1756427805420,0.86448231,112580.0,112570.0,0.30825632]
[1756427805969,0.86448231,112580.0,112570.0,0.48808354]
[1756427805970,0.85920231,112580.0,112570.0,0.48808354]
[1756427806089,0.34,112580.0,112570.0,0.49124354]
[1756427806296,0.86130231,112580.0,112570.0,0.33644354]
[1756427806500,0.86448231,112580.0,112570.0,0.48808354]
[1756427807052,0.86130231,112580.0,112570.0,0.48908354]
[1756427808060,0.86130231,112580.0,112570.0,0.49108354]
[1756427809480,0.86448231,112580.0,112570.0,0.49107354]
[1756427810470,0.86130231,112580.0,112570.0,0.49107354]
[1756427811707,0.86448231,112580.0,112570.0,0.49107354]
[1756427812919,0.86130231,112580.0,112570.0,0.49107354]
[1756427813231,0.68365087,112580.0,112570.0,0.49107354]
[1756427813440,0.68155087,112580.0,112570.0,0.49107354]
[1756427813640,0.85920231,112580.0,112570.0,0.49107354]
[1756427813905,0.34,112580.0,112570.0,0.49400354]
[1756427814052,0.68155087,112580.0,112570.0,0.49400354]
[1756427815279,0.85920231,112580.0,112570.0,0.34236354]
[1756427815600,0.86446231,112580.0,112570.0,0.49103354]
[1756427816352,0.86128231,112580.0,112570.0,0.49103354]
[1756427816754,0.86446231,112580.0,112570.0,0.49103354]
[1756427817377,0.85920231,112580.0,112570.0,0.49103354]
[1756427817888,0.68155087,112580.0,112570.0,0.49103354]
[1756427818634,0.85920231,112580.0,112570.0,0.49103354]
[1756427819246,0.68155087,112580.0,112570.0,0.49103354]
[1756427819679,0.34155087,112580.0,112570.0,0.49103354]
[1756427820518,0.34363087,112580.0,112570.0,0.49103354]
[1756427820733,0.34155087,112580.0,112570.0,0.49396354]
[1756427821816,0.70825787,112590.0,112580.0,0.17765144]
[1756427822038,0.70825787,112590.0,112580.0,0.26809776]
[1756427822249,0.71033787,112590.0,112580.0,0.26809776]
[1756427822493,0.70825787,112590.0,112580.0,0.27102776]
[1756427822706,0.70825787,112590.0,112580.0,0.26809776]
[1756427823133,0.70825787,112590.0,112580.0,0.26909776]
[1756427823613,0.89115353,112590.0,112580.0,0.26909776]
[1756427823849,0.89115353,112590.0,112580.0,0.41754776]
[1756427823850,1.2327044,112590.0,112580.0,0.41754776]
[1756427824092,1.2327044,112590.0,112580.0,0.41854776]
[1756427824324,0.89115353,112590.0,112580.0,0.42069776]
[1756427824520,0.89115353,112590.0,112580.0,0.42269776]
[1756427824988,0.71351787,112590.0,112580.0,0.42269776]
[1756427826034,0.89115353,112590.0,112580.0,0.42269776]
[1756427827120,0.89115353,112590.0,112580.0,0.26894776]
[1756427827354,1.2327044,112590.0,112580.0,0.42050776]
[1756427828151,1.2327044,112590.0,112580.0,0.26894776]
[1756427828349,1.2327044,112590.0,112580.0,0.42050776]
[1756427829768,0.71351787,112590.0,112580.0,0.42265776]
[1756427829974,0.70825787,112590.0,112580.0,0.42558776]
[1756427830654,0.026707,112590.0,112580.0,0.69228776]
[1756427831267,0.68155087,112600.0,112590.0,0.17763566]
[1756427831450,0.68155087,112600.0,112590.0,0.26808198]
[1756427831655,0.68681087,112600.0,112590.0,0.26808198]
[1756427831856,0.68681087,112600.0,112590.0,0.41749198]
[1756427832192,0.68681087,112600.0,112590.0,0.41964198]
[1756427833036,0.68363087,112600.0,112590.0,0.41964198]
[1756427833257,0.68155087,112600.0,112590.0,0.42064198]
[1756427833758,0.68155087,112600.0,112590.0,0.42164198]
[1756427833962,0.68155087,112600.0,112590.0,0.27008198]
[1756427834174,0.68681087,112600.0,112590.0,0.42164198]
[1756427834384,0.68155087,112600.0,112590.0,0.42164198]
[1756427834606,0.68155087,112600.0,112590.0,0.42457198]
[1756427835036,0.68155087,112600.0,112590.0,0.69127198]
[1756427835451,0.68155087,112600.0,112590.0,0.53678198]
[1756427835697,0.68681087,112600.0,112590.0,0.53463198]
[1756427835902,0.68681087,112600.0,112590.0,0.68615198]
[1756427836132,0.68363087,112600.0,112590.0,0.68830198]
[1756427836335,0.68155087,112600.0,112590.0,0.68830198]
[1756427836543,0.34,112600.0,112590.0,0.68830198]
[1756427836750,0.68155087,112600.0,112590.0,0.68830198]
[1756427837619,0.68155087,112600.0,112590.0,0.53678198]
[1756427837827,0.68681087,112600.0,112590.0,0.68830198]
[1756427838701,0.68155087,112600.0,112590.0,0.68830198]
[1756427839583,0.60795102,112600.0,112590.0,0.35699632]
[1756427839794,1.36596251,112600.0,112590.0,0.24297632]
[1756427840010,1.53918502,112600.0,112590.0,0.002]
[1756427840428,1.53918502,112600.0,112590.0,0.15464]
[1756427840858,1.53918502,112600.0,112590.0,0.002]
[1756427841037,1.54541797,112600.0,112590.0,0.002]
[1756427841256,1.53918502,112600.0,112590.0,0.002]
[1756427841464,1.53918502,112600.0,112590.0,0.001]
[1756427841668,0.53857448,112590.0,112580.0,0.1526]
[1756427841884,1.30997254,112590.0,112580.0,0.24089632]
[1756427842081,1.31517254,112590.0,112580.0,0.24089632]
[1756427842765,1.34187954,112590.0,112580.0,0.24089632]
[1756427842921,1.34187954,112590.0,112580.0,0.24289632]
[1756427845298,1.34187954,112590.0,112580.0,0.09029632]
[1756427845498,1.86313734,112590.0,112580.0,0.002]
[1756427845826,1.9316834,112590.0,112580.0,0.002]
[1756427846036,1.91111339,112590.0,112580.0,0.002]
[1756427846492,1.91111339,112590.0,112580.0,0.001]
[1756427846902,2.04533642,112590.0,112580.0,0.001]
[1756427847125,2.01853746,112590.0,112580.0,0.001]
[1756427847966,0.19860604,112570.0,112560.0,0.0004]
[1756427848171,1.41197493,112570.0,112560.0,0.0004]
[1756427848388,1.41717493,112570.0,112560.0,0.0004]
[1756427849337,1.45259988,112570.0,112560.0,0.0004]
[1756427850816,1.45247988,112570.0,112560.0,0.0004]
[1756427854848,1.29995988,112570.0,112560.0,0.0004]
[1756427855051,1.45235988,112570.0,112560.0,0.0004]
[1756427855489,1.45435988,112570.0,112560.0,0.0004]
[1756427856445,1.45431988,112570.0,112560.0,0.0004]
[1756427858098,1.30195988,112570.0,112560.0,0.0004]
[1756427858470,1.26433273,112570.0,112560.0,0.0004]
[1756427860435,1.41661273,112570.0,112560.0,0.0004]
[1756427863641,1.26433273,112570.0,112560.0,0.0004]
[1756427863846,1.41657273,112570.0,112560.0,0.0004]
[1756427864049,1.50123062,112570.0,112560.0,0.0004]
[1756427864255,1.50744301,112570.0,112560.0,0.0004]
[1756427865203,1.55127524,112570.0,112560.0,0.0004]
[1756427865598,1.57036328,112570.0,112560.0,0.0004]
[1756427866408,1.41812328,112570.0,112560.0,0.0004]
[1756427866616,1.57024328,112570.0,112560.0,0.0004]
[1756427867227,1.54297635,112570.0,112560.0,0.0004]
[1756427868608,1.57024328,112570.0,112560.0,0.0004]
[1756427869479,1.59419737,112570.0,112560.0,0.0004]
[1756427870430,1.44207737,112570.0,112560.0,0.0004]
[1756427870634,1.59439737,112570.0,112560.0,0.0004]
[1756427872279,1.35741948,112570.0,112560.0,0.0004]
[1756427872503,0.96246286,112570.0,112560.0,0.0025]
[1756427872717,1.43237964,112570.0,112560.0,0.0025]
[1756427872935,1.29478607,112570.0,112560.0,0.0025]
[1756427873147,1.30106685,112570.0,112560.0,0.0025]
[1756427873392,0.59702629,112570.0,112560.0,0.0025]
[1756427873623,0.93857716,112570.0,112560.0,0.09374632]
[1756427873875,0.93857716,112570.0,112560.0,0.09079632]
[1756427873876,0.95951598,112570.0,112560.0,0.09079632]
[1756427874722,1.01433534,112570.0,112560.0,0.09079632]
[1756427875490,0.95951598,112570.0,112560.0,0.09079632]
[1756427875701,0.95951598,112570.0,112560.0,0.27142933]
[1756427876038,0.95951598,112570.0,112560.0,0.09374632]
[1756427877414,0.92986621,112570.0,112560.0,0.27365036]
[1756427877640,0.75219899,112570.0,112560.0,0.27142933]
[1756427877814,0.38688019,112570.0,112560.0,0.27142933]
[1756427878020,0.90454741,112570.0,112560.0,0.27142933]
[1756427878258,0.72688019,112570.0,112560.0,0.27142933]
[1756427878783,0.90254741,112570.0,112560.0,0.27142933]
[1756427879082,0.72488019,112570.0,112560.0,0.27142933]
[1756427879462,0.90254741,112570.0,112560.0,0.27142933]
[1756427879791,0.90254741,112570.0,112560.0,0.42370933]
[1756427880697,0.90254741,112570.0,112560.0,0.27142933]
[1756427880946,0.92874623,112570.0,112560.0,0.08869632]
[1756427881172,1.35859342,112570.0,112560.0,0.0004]
[1756427881392,0.67549168,112570.0,112560.0,0.0004]
[1756427881623,1.35859342,112570.0,112560.0,0.0004]
[1756427882040,1.37774964,112570.0,112560.0,0.0004]
[1756427882247,1.36113432,112570.0,112560.0,0.0004]
[1756427882387,1.35860626,112570.0,112560.0,0.0004]
[1756427882994,0.38334168,112570.0,112560.0,0.26847933]
[1756427883204,0.72489255,112570.0,112560.0,0.27142933]
[1756427883425,0.88593209,112570.0,112560.0,0.27142933]
[1756427883640,0.88796209,112570.0,112560.0,0.24343632]
[1756427883846,0.88796209,112570.0,112560.0,0.42111933]
[1756427884058,0.88593209,112570.0,112560.0,0.42111933]
[1756427884519,0.88593209,112570.0,112560.0,0.24443632]
[1756427884773,1.32103928,112570.0,112560.0,0.09069632]
[1756427884963,1.3419781,112570.0,112560.0,0.0024]
[1756427885166,1.4946181,112570.0,112560.0,0.0024]
[1756427885378,1.51123993,112570.0,112560.0,0.0024]
[1756427885787,1.51123948,112570.0,112560.0,0.0024]
[1756427885996,1.53661927,112570.0,112560.0,0.0014]
[1756427886190,1.53861927,112570.0,112560.0,0.0014]
[1756427887036,1.53861927,112570.0,112560.0,0.0004]
[1756427892228,1.45004295,112570.0,112560.0,0.0004]
[1756427892436,1.29768295,112570.0,112560.0,0.0004]
[1756427892650,1.45000295,112570.0,112560.0,0.0004]
[1756427892877,1.45000027,112570.0,112560.0,0.0004]
[1756427893725,1.45000024,112570.0,112560.0,0.0004]
[1756427895005,1.29768024,112570.0,112560.0,0.0004]
[1756427895209,1.43085331,112570.0,112560.0,0.0004]
[1756427895403,1.45597853,112570.0,112560.0,0.0004]
[1756427895832,1.43085331,112570.0,112560.0,0.0004]
[1756427896250,1.42462107,112570.0,112560.0,0.0004]
[1756427897224,1.40800178,112570.0,112560.0,0.0004]
[1756427898425,1.25568178,112570.0,112560.0,0.0004]
[1756427898643,1.25568178,112570.0,112560.0,0.00236]
[1756427899029,1.40792178,112570.0,112560.0,0.0004]
[1756427899463,1.4962181,112570.0,112560.0,0.0004]
[1756427901052,1.51284361,112570.0,112560.0,0.0004]
[1756427902072,1.42454729,112570.0,112560.0,0.0004]
[1756427903224,1.40792178,112570.0,112560.0,0.0004]
[1756427903447,1.42455161,112570.0,112560.0,0.0004]
[1756427903871,1.40792178,112570.0,112560.0,0.0004]
[1756427904077,1.42455161,112570.0,112560.0,0.0004]
[1756427904277,1.51284793,112570.0,112560.0,0.0004]
[1756427904675,1.4962181,112570.0,112560.0,0.0004]
[1756427904940,1.52972092,112570.0,112560.0,0.0004]
[1756427905144,1.89042766,112570.0,112560.0,0.0004]
[1756427905282,1.54887679,112570.0,112560.0,0.0004]
[1756427906914,1.54887568,112570.0,112560.0,0.0004]
[1756427908577,1.97872287,112570.0,112560.0,0.0004]
[1756427908784,1.60990507,112570.0,112560.0,0.0004]
[1756427911470,1.95145594,112570.0,112560.0,0.0004]
[1756427911679,1.95145594,112570.0,112560.0,1e-08]
[1756427911680,2.02215243,112570.0,112560.0,1e-08]
[1756427911898,2.04610652,112570.0,112560.0,1e-08]
[1756427912104,0.86921391,112570.0,112560.0,1e-08]
[1756427912312,2.04578652,112570.0,112560.0,1e-08]
[1756427912533,1.89386652,112570.0,112560.0,1e-08]
[1756427912738,2.04586652,112570.0,112560.0,1e-08]
[1756427913771,2.04586133,112570.0,112560.0,1e-08]
[1756427914618,2.04586195,112570.0,112560.0,1e-08]
[1756427916638,1.89386195,112570.0,112560.0,1e-08]
[1756427916869,2.04594195,112570.0,112560.0,1e-08]
[1756427917501,2.04586195,112570.0,112560.0,1e-08]
[1756427921228,2.01905695,112570.0,112560.0,1e-08]
[1756427922555,2.04586195,112570.0,112560.0,1e-08]
[1756427922758,0.59269376,112560.0,112550.0,1e-08]
[1756427922963,0.59269376,112560.0,112540.0,0.00155925]
[1756427922964,0.53863762,112550.0,112540.0,0.00155925]
[1756427923164,1.42061,112550.0,112540.0,0.00160694]
[1756427924021,1.41793943,112550.0,112540.0,0.00160694]
[1756427924275,1.42415792,112550.0,112540.0,0.00160694]
[1756427924870,1.42415609,112550.0,112540.0,0.00160694]
[1756427925077,1.4716818,112550.0,112540.0,0.00160694]
[1756427925280,1.4736818,112550.0,112540.0,0.00160694]
[1756427925680,1.50094873,112550.0,112540.0,0.00160694]
[1756427925860,1.50194873,112550.0,112540.0,0.00160694]
[1756427926228,1.54098217,112550.0,112540.0,0.00160694]
[1756427928096,1.38906217,112550.0,112540.0,0.00160694]
[1756427928308,1.54102217,112550.0,112540.0,0.00160694]
[1756427928935,1.54106217,112550.0,112540.0,0.00160694]